[Event "1st Gujarat GM Open 2018"]
[Site "Ahmedabad"]
[Date "2018.10.07"]
[Round "3"]
[White "Wagh Suyog"]
[Black "Soham Datar"]
[Result "1/2-1/2"]
[ECO "D12"]
[WhiteElo "2312"]
[BlackElo "2060"]
[Annotator "NA"]
[PlyCount "171"]
[EventDate "2018.10.05"]
[EventType "swiss"]
[EventCountry "IND"]
[SourceTitle "playchess.com"]
[Source "ChessBase"]
[SourceQuality "1"]
[TimeControl "5400+30"]

1. d4 {[%emt 0:00:00]} d5 {[%emt 0:00:00]} 2. c4 {[%emt 0:02:02]} c6 {[%emt 0:00:07]} 3. Nf3 {[%emt 0:00:13]} Nf6 {[%emt 0:00:06]} 4. e3 {[%emt 0:09:18]} Bf5 {[%emt 0:00:34]} 5. Nc3 {[%emt 0:02:46]} e6 {[%emt 0:00:28]} 6. Bd3 {[%emt 0:08:06]} Bxd3 {[%emt 0:01:17]} 7. Qxd3 {[%emt 0:00:05]} Nbd7 {[%emt 0:00:50]} 8. O-O {[%emt 0:02:02]} Bb4 {[%emt 0:00:16]} 9. Bd2 {[%emt 0:00:22]} Bxc3 {[%emt 0:02:50]} 10. Bxc3 {[%emt 0:01:16]} Ne4 {[%emt 0:00:00]} 11. Bd2 Nef6 12. Bc3 {[%emt 0:01:00]} Ne4 {[%emt 0:02:50]} 13. Bb4 {[%emt 0:06:25]} Qb6 {[%emt 0:00:42]} 14. Ba3 {[%emt 0:17:45]} Qa6 {[%emt 0:02:56]} 15. Rfc1 {[%emt 0:03:51]} Nb6 {[%emt 0:02:45]} 16. Ne5 {[%emt 0:01:10]} f6 {[%emt 0:14:07]} 17. cxd5 {[%emt 0:02:29]} Qxd3 {[%emt 0:00:28]} 18. Nxd3 {[%emt 0:00:06]} exd5 {[%emt 0:00:50]} 19. f3 {[%emt 0:07:10]} Ng5 {[%emt 0:00:41]} 20. Nc5 {[%emt 0:01:23]} O-O-O {[%emt 0:01:10]} 21. b3 {[%emt 0:05:39]} Rhe8 {[%emt 0:02:23]} 22. Kf2 {[%emt 0:01:34]} Ne6 {[%emt 0:02:34]} 23. Nd3 {[%emt 0:00:04]} Kb8 {[%emt 0:02:33]} 24. Bb4 {[%emt 0:01:42]} Nc8 {[%emt 0:02:04]} 25. Rh1 {[%emt 0:07:57]} Rd7 {[%emt 0:03:06]} 26. Rae1 {[%emt 0:01:54]} b6 {[%emt 0:04:51]} 27. Rc1 {[%emt 0:00:37]} Kb7 {[%emt 0:00:12]} 28. Rc2 {[%emt 0:00:12]} a5 {[%emt 0:00:36]} 29. Ba3 {[%emt 0:03:18]} Na7 {[%emt 0:00:11]} 30. Rhc1 {[%emt 0:00:55]} Rc8 {[%emt 0:01:56]} 31. Bb2 {[%emt 0:00:36]} Nb5 {[%emt 0:07:17]} 32. a4 {[%emt 0:01:24]} Na7 {[%emt 0:00:38]} 33. Ba3 {[%emt 0:02:33]} Ra8 {[%emt 0:02:34]} 34. Kf1 {[%emt 0:03:34]} Re8 {[%emt 0:00:37]} 35. Kf2 {[%emt 0:00:01]} Ra8 {[%emt 0:00:38]} 36. g3 {[%emt 0:00:38]} g5 {[%emt 0:03:34]} 37. Rh1 {[%emt 0:02:34]} Rg7 {[%emt 0:00:36]} 38. h4 {[%emt 0:00:40]} g4 {[%emt 0:01:53]} 39. f4 {[%emt 0:00:34]} Rd7 {[%emt 0:02:40]} 40. h5 {[%emt 0:00:38]} h6 {[%emt 0:01:33]} 41. Rh4 {[%emt 0:02:39]} Rg8 {[%emt 0:01:35]} 42. Rc1 {[%emt 0:00:29]} Ka8 {[%emt 0:00:34]} 43. Ke2 {[%emt 0:01:05]} Rb7 {[%emt 0:02:04]} 44. Nf2 {[%emt 0:00:45]} f5 {[%emt 0:00:14]} 45. Nd3 {[%emt 0:00:56]} Re8 {[%emt 0:01:06]} 46. Kd2 {[%emt 0:00:26]} c5 {[%emt 0:00:49]} 47. dxc5 {[%emt 0:01:26]} bxc5 {[%emt 0:00:07]} 48. Bxc5 {[%emt 0:01:04]} Rxb3 {[%emt 0:00:27]} 49. Rhh1 {[%emt 0:00:10]} Nc6 {[%emt 0:01:11]} 50. Bd6 {[%emt 0:00:05]} d4 {[%emt 0:02:10]} 51. Rhe1 {[%emt 0:01:05]} dxe3+ {[%emt 0:01:45]} 52. Rxe3 {[%emt 0:00:01]} Ncd4 {[%emt 0:00:33]} 53. Be5 {[%emt 0:00:58]} Nf3+ {[%emt 0:01:42]} 54. Ke2 {[%emt 0:00:29]} Rd8 {[%emt 0:02:30]} 55. Bf6 {[%emt 0:00:17]} Rd6 {[%emt 0:01:48]} 56. Rc8+ {[%emt 0:00:33]} Ka7 {[%emt 0:00:54]} 57. Re8 {[%emt 0:00:13]} Ned4+ {[%emt 0:01:51]} 58. Bxd4+ {[%emt 0:00:09]} Nxd4+ {[%emt 0:00:34]} 59. Kf2 {[%emt 0:01:09]} Nc6 {[%emt 0:00:53]} 60. Ne1 {[%emt 0:00:11]} Rb2+ {[%emt 0:03:39]} 61. Re2 {[%emt 0:00:57]} Rxe2+ {[%emt 0:00:07]} 62. Kxe2 {[%emt 0:00:27]} Re6+ {[%emt 0:01:06]} 63. Rxe6 {[%emt 0:00:01]} Nd4+ {[%emt 0:00:01]} 64. Kd3 {[%emt 0:01:00]} Nxe6 {[%emt 0:00:01]} 65. Ng2 {[%emt 0:00:23]} Nc5+ {[%emt 0:00:29]} 66. Kd4 {[%emt 0:00:44]} Ne4 {[%emt 0:00:04]} 67. Ke5 {[%emt 0:00:29]} Nxg3 {[%emt 0:00:05]} 68. Kf6 {[%emt 0:00:12]} Nxh5+ {[%emt 0:01:16]} 69. Kxf5 {[%emt 0:00:19]} g3 {[%emt 0:04:36]} 70. Kg6 {[%emt 0:01:03]} Nxf4+ {[%emt 0:00:28]} 71. Nxf4 {[%emt 0:00:02]} Kb6 {[%emt 0:00:09]} 72. Kh5 {[%emt 0:00:24]} Kc5 {[%emt 0:00:02]} 73. Kg4 {[%emt 0:00:07]} Kb4 {[%emt 0:00:04]} 74. Kxg3 {[%emt 0:00:46]} Kxa4 {[%emt 0:00:03]} 75. Nd5 {[%emt 0:01:04]} Kb3 {[%emt 0:00:15]} 76. Nb6 {[%emt 0:00:07]} Kb4 {[%emt 0:00:11]} 77. Kh4 {[%emt 0:00:47]} Kb5 {[%emt 0:00:13]} 78. Nd5 {[%emt 0:00:04]} Kc5 {[%emt 0:00:17]} 79. Nc3 {[%emt 0:00:05]} Kc4 {[%emt 0:00:32]} 80. Na4 {[%emt 0:00:07]} Kb5 {[%emt 0:00:36]} 81. Nc3+ {[%emt 0:00:07]} Kb4 {[%emt 0:00:11]} 82. Nd5+ {[%emt 0:00:06]} Kb3 {[%emt 0:00:06]} 83. Nb6 {[%emt 0:00:05]} a4 {[%emt 0:00:09]} 84. Nxa4 {[%emt 0:00:14]} Kxa4 {[%emt 0:00:10]} 85. Kh5 {[%emt 0:00:03]} Kb3 {[%emt 0:00:09]} 86. Kxh6 {[%emt 0:00:05]} 1/2-1/2

[Event "1st Gujarat GM Open 2018"]
[Site "Ahmedabad"]
[Date "2018.10.07"]
[Round "3"]
[White "Srijit Paul"]
[Black "Thipsay, Bagyashree Sathe"]
[Result "1/2-1/2"]
[ECO "B12"]
[WhiteElo "2292"]
[BlackElo "2021"]
[Annotator "NA"]
[PlyCount "84"]
[EventDate "2018.10.05"]
[EventType "swiss"]
[EventCountry "IND"]
[SourceTitle "playchess.com"]
[Source "ChessBase"]
[SourceQuality "1"]
[TimeControl "5400+30"]

1. e4 {[%emt 0:00:00]} c6 {[%emt 0:00:00]} 2. d4 {[%emt 0:00:00]} d5 {[%emt 0:00:00]} 3. e5 {[%emt 0:00:03]} Bf5 {[%emt 0:00:00]} 4. Nd2 {[%emt 0:00:04]} e6 {[%emt 0:00:45]} 5. Nb3 {[%emt 0:00:05]} Nd7 {[%emt 0:00:56]} 6. Nf3 {[%emt 0:00:07]} Bg6 {[%emt 0:06:04]} 7. Be2 {[%emt 0:00:47]} Nh6 {[%emt 0:01:09]} 8. a4 {[%emt 0:00:20]} Nf5 {[%emt 0:02:27]} 9. O-O {[%emt 0:00:13]} Be7 {[%emt 0:00:59]} 10. a5 {[%emt 0:00:36]} Rc8 {[%emt 0:00:54]} 11. g4 {[%emt 0:03:31]} Nh6 {[%emt 0:02:10]} 12. h3 {[%emt 0:00:06]} O-O {[%emt 0:00:11]} 13. Be3 {[%emt 0:07:38]} Kh8 {[%emt 0:01:25]} 14. c3 {[%emt 0:21:10]} Ng8 {[%emt 0:01:17]} 15. Ne1 {[%emt 0:00:26]} f6 {[%emt 0:14:37]} 16. f4 {[%emt 0:01:05]} fxe5 {[%emt 0:01:08]} 17. dxe5 {[%emt 0:00:02]} c5 {[%emt 0:02:01]} 18. Ng2 {[%emt 0:10:44]} Be4 {[%emt 0:09:52]} 19. g5 {[%emt 0:04:39]} Qc7 {[%emt 0:13:26]} 20. Bg4 {[%emt 0:06:09]} Qc6 {[%emt 0:01:21]} 21. Qe2 {[%emt 0:02:10]} Bd8 {[%emt 0:02:58]} 22. Nd2 {[%emt 0:03:30]} Bf5 {[%emt 0:02:03]} 23. Bxf5 {[%emt 0:00:10]} Rxf5 {[%emt 0:00:04]} 24. Nh4 {[%emt 0:06:10]} Ne7 {[%emt 0:08:50]} 25. Nxf5 {[%emt 0:00:34]} Nxf5 {[%emt 0:00:02]} 26. Bf2 {[%emt 0:01:28]} Nf8 {[%emt 0:02:26]} 27. h4 {[%emt 0:09:52]} Ng6 {[%emt 0:04:09]} 28. Qg4 {[%emt 0:00:08]} Qb5 {[%emt 0:00:42]} 29. h5 {[%emt 0:00:06]} Nge7 {[%emt 0:00:09]} 30. g6 {[%emt 0:08:19]} h6 {[%emt 0:01:39]} 31. Nf3 {[%emt 0:00:45]} Bxa5 {[%emt 0:01:58]} 32. Rfe1 {[%emt 0:03:41]} Bb6 {[%emt 0:01:39]} 33. Bh4 {[%emt 0:00:30]} Nc6 {[%emt 0:02:53]} 34. Bf6 {[%emt 0:01:06]} Qxb2 {[%emt 0:01:26]} 35. Nh4 {[%emt 0:00:25]} Qxc3 {[%emt 0:05:11]} 36. Nxf5 {[%emt 0:03:07]} exf5 {[%emt 0:00:02]} 37. Qxf5 {[%emt 0:01:11]} Qg3+ {[%emt 0:01:00]} 38. Kh1 {[%emt 0:00:06]} Qf3+ {[%emt 0:00:23]} 39. Kh2 {[%emt 0:00:06]} Qf2+ {[%emt 0:00:09]} 40. Kh3 {[%emt 0:00:07]} Qf3+ {[%emt 0:00:16]} 41. Kh4 {[%emt 0:01:19]} Qf2+ {[%emt 0:00:13]} 42. Kh3 {[%emt 0:00:25]} Qf3+ {[%emt 0:01:25]} 1/2-1/2

[Event "1st Gujarat GM Open 2018"]
[Site "Ahmedabad"]
[Date "2018.10.07"]
[Round "3"]
[White "Prasad, Devaki V"]
[Black "Pranesh M"]
[Result "1-0"]
[ECO "C80"]
[WhiteElo "2285"]
[BlackElo "2028"]
[Annotator "NA"]
[PlyCount "69"]
[EventDate "2018.10.05"]
[EventType "swiss"]
[EventCountry "IND"]
[SourceTitle "playchess.com"]
[Source "ChessBase"]
[SourceQuality "1"]
[TimeControl "5400+30"]

1. e4 {[%emt 0:00:00]} e5 {[%emt 0:00:00]} 2. Nf3 {[%emt 0:00:00]} Nc6 {[%emt 0:00:00]} 3. Bb5 {[%emt 0:00:00]} Nf6 {[%emt 0:00:08]} 4. O-O {[%emt 0:00:19]} Nxe4 {[%emt 0:00:31]} 5. d4 {[%emt 0:01:19]} a6 {[%emt 0:01:36]} 6. Ba4 {[%emt 0:09:35]} exd4 {[%emt 0:05:46]} 7. Re1 {[%emt 0:02:40]} d5 {[%emt 0:05:35]} 8. Nxd4 {[%emt 0:00:50]} b5 {[%emt 0:06:18]} 9. Nxc6 {[%emt 0:01:10]} Qf6 {[%emt 0:00:08]} 10. f3 {[%emt 0:20:13]} Bc5+ {[%emt 0:16:51]} 11. Kh1 {[%emt 0:08:50]} Bg4 {[%emt 0:07:07]} 12. Nc3 {[%emt 0:24:41]} Qxc6 {[%emt 0:19:08]} 13. fxe4 {[%emt 0:00:47]} Qg6 {[%emt 0:08:35]} 14. Qxd5 {[%emt 0:01:28]} O-O {[%emt 0:00:42]} 15. Qxc5 {[%emt 0:00:23]} bxa4 {[%emt 0:00:05]} 16. Bf4 {[%emt 0:01:11]} Rab8 {[%emt 0:00:18]} 17. Nd5 {[%emt 0:03:55]} Qe6 {[%emt 0:00:53]} 18. Bxc7 {[%emt 0:01:11]} Rbe8 {[%emt 0:01:09]} 19. Bd6 {[%emt 0:00:46]} Rc8 {[%emt 0:00:25]} 20. Ne7+ {[%emt 0:00:19]} Kh8 {[%emt 0:00:04]} 21. Nxc8 {[%emt 0:00:05]} Rxc8 {[%emt 0:00:04]} 22. Qe5 {[%emt 0:01:10]} Qg6 {[%emt 0:00:10]} 23. Re3 {[%emt 0:01:06]} f6 {[%emt 0:00:24]} 24. Qd4 {[%emt 0:03:30]} Rxc2 {[%emt 0:00:13]} 25. Rg3 {[%emt 0:02:54]} Qh5 {[%emt 0:02:04]} 26. Qxa4 {[%emt 0:02:29]} Rc8 {[%emt 0:02:54]} 27. h3 {[%emt 0:01:30]} Be6 {[%emt 0:00:22]} 28. Qxa6 {[%emt 0:00:48]} Qh6 {[%emt 0:00:29]} 29. Bf4 {[%emt 0:00:53]} Qxf4 {[%emt 0:00:35]} 30. Qxe6 {[%emt 0:00:04]} Rg8 {[%emt 0:00:14]} 31. Rd3 {[%emt 0:00:43]} h6 {[%emt 0:00:07]} 32. Rad1 {[%emt 0:00:03]} Qc7 {[%emt 0:00:13]} 33. Rd7 {[%emt 0:00:05]} Qa5 {[%emt 0:00:09]} 34. b4 {[%emt 0:00:19]} Qa8 {[%emt 0:00:38]} 35. Qxg8+ {[%emt 0:00:16] Qd8 [%clk 0:23:05]} 1-0

[Event "1st Gujarat GM Open 2018"]
[Site "Ahmedabad"]
[Date "2018.10.07"]
[Round "3"]
[White "Kushagra Mohan"]
[Black "Ter-Sahakyan, Samvel"]
[Result "0-1"]
[ECO "B92"]
[WhiteElo "2283"]
[BlackElo "2547"]
[Annotator "ChessBase"]
[PlyCount "92"]
[EventDate "2018.10.05"]
[EventType "swiss"]
[EventCountry "IND"]
[SourceTitle "playchess.com"]
[Source "ChessBase"]
[SourceQuality "1"]
[TimeControl "5400+30"]

1. e4 {[%emt 0:00:00]} c5 {[%emt 0:00:00]} 2. Nf3 {[%emt 0:00:00]} d6 {[%emt 0:00:00]} 3. d4 {[%emt 0:00:00]} cxd4 {[%emt 0:00:00]} 4. Nxd4 {[%emt 0:00:00]} Nf6 {[%emt 0:00:00]} 5. Nc3 {[%emt 0:00:00]} a6 {[%emt 0:00:00]} 6. Be2 {[%emt 0:00:00]} e5 {[%emt 0:00:12]} 7. Nb3 {[%emt 0:00:00]} Be7 {[%emt 0:00:06]} 8. O-O {[%emt 0:00:00]} O-O {[%emt 0:00:23]} 9. Qd3 {[%emt 0:00:02]} Be6 {[%emt 0:04:31]} 10. Nd5 {[%emt 0:00:06]} Nbd7 {[%emt 0:03:22]} 11. Bd2 {[%emt 0:03:01]} Bxd5 {[%emt 0:12:29]} 12. exd5 {[%emt 0:00:02]} Rc8 {[%emt 0:00:06]} 13. c4 {[%emt 0:00:15]} b6 {[%emt 0:00:27]} 14. Rac1 {[%emt 0:03:29]} a5 {[%emt 0:02:32]} 15. a4 {[%emt 0:01:36]} Nc5 {[%emt 0:07:25]} 16. Nxc5 {[%emt 0:00:13]} dxc5 {[%emt 0:00:06]} 17. Bf3 {[%emt 0:02:31]} Bd6 {[%emt 0:00:51]} 18. b3 {[%emt 0:02:55]} Ne8 {[%emt 0:02:34]} 19. g3 {[%emt 0:13:22]} f5 {[%emt 0:02:23]} 20. Bg2 {[%emt 0:00:51]} Rc7 {[%emt 0:01:20]} 21. Rce1 {[%emt 0:02:22]} h5 {[%emt 0:08:33]} 22. Bc3 {[%emt 0:04:16]} Re7 {[%emt 0:01:56]} 23. Re2 {[%emt 0:05:40]} h4 {[%emt 0:07:14]} 24. gxh4 {[%emt 0:03:50]} e4 {[%emt 0:02:02]} 25. Qh3 {[%emt 0:02:03]} Bf4 {[%emt 0:02:15]} 26. f3 {[%emt 0:05:12]} e3 {[%emt 0:01:00]} 27. h5 {[%emt 0:02:53]} Ref7 {[%emt 0:12:40]} 28. Kh1 {[%emt 0:11:32]} Qg5 {[%emt 0:03:48]} 29. Rg1 {[%emt 0:01:21]} Nf6 {[%emt 0:00:05]} 30. Bf1 {[%emt 0:00:55]} Qxh5 {[%emt 0:00:40]} 31. Qxh5 {[%emt 0:01:49]} Nxh5 {[%emt 0:00:01]} 32. Rg6 {[%emt 0:00:02]} Rb8 {[%emt 0:04:39]} 33. Re6 {[%emt 0:05:34]} Rbb7 {[%emt 0:00:12]} 34. Bh3 {[%emt 0:10:07]} Kh7 {[%emt 0:00:55]} 35. Kg1 {[%emt 0:01:22]} Bb8 {[%emt 0:05:10]} 36. R2xe3 {[%emt 0:05:04]} Nf4 {[%emt 0:00:06]} 37. Bf1 {[%emt 0:03:05]} Nxe6 {[%emt 0:00:06]} 38. Rxe6 {[%emt 0:00:02]} Rfe7 {[%emt 0:01:59]} 39. Bd3 {[%emt 0:02:14]} Rxe6 {[%emt 0:00:14]} 40. dxe6 {[%emt 0:00:12]} Kg6 {[%emt 0:00:16]} 41. h4 {[%emt 0:04:31]} Re7 {[%emt 0:00:18]} 42. h5+ {[%emt 0:00:09]} Kg5 {[%emt 0:00:04]} 43. Kf2 {[%emt 0:00:06]} Bf4 {[%emt 0:01:59]} 44. Bb2 {[%emt 0:03:22]} Rxe6 {[%emt 0:01:27]} 45. Bxg7 {[%emt 0:00:08]} Be5 {[%emt 0:00:03]} 46. Bf8 {[%emt 0:02:04]} Re8 {[%emt 0:00:45]} 0-1

[Event "1st Gujarat GM Open 2018"]
[Site "Ahmedabad"]
[Date "2018.10.07"]
[Round "3"]
[White "Bharath Subramaniyam H"]
[Black "Sa, Kannan"]
[Result "1-0"]
[ECO "B00"]
[WhiteElo "2276"]
[BlackElo "1977"]
[Annotator "NA"]
[PlyCount "70"]
[EventDate "2018.10.05"]
[EventType "swiss"]
[EventCountry "IND"]
[SourceTitle "playchess.com"]
[Source "ChessBase"]
[SourceQuality "1"]
[TimeControl "5400+30"]

1. e4 {[%emt 0:00:00]} f6 {[%emt 0:00:00]} 2. d4 {[%emt 0:02:14]} e6 {[%emt 0:00:43]} 3. Nf3 {[%emt 0:02:25]} b6 {[%emt 0:00:22]} 4. Bd3 {[%emt 0:00:58]} Bb7 {[%emt 0:00:35]} 5. O-O {[%emt 0:02:16]} g6 {[%emt 0:03:07]} 6. Nc3 {[%emt 0:14:54]} Nh6 {[%emt 0:02:05]} 7. e5 {[%emt 0:04:31]} Nf7 {[%emt 0:02:33]} 8. Ne4 {[%emt 0:10:25]} Bg7 {[%emt 0:05:01]} 9. exf6 {[%emt 0:12:48]} Bxf6 {[%emt 0:00:57]} 10. Ne5 {[%emt 0:01:11]} Bxe5 {[%emt 0:27:23]} 11. dxe5 {[%emt 0:00:15]} Qe7 {[%emt 0:00:26]} 12. f4 {[%emt 0:05:10]} Bxe4 {[%emt 0:06:53]} 13. Bxe4 {[%emt 0:00:22]} Qc5+ {[%emt 0:00:56]} 14. Kh1 {[%emt 0:00:50]} Nc6 {[%emt 0:01:30]} 15. Qd3 {[%emt 0:02:13]} Rd8 {[%emt 0:08:34]} 16. Be3 {[%emt 0:01:38]} Qe7 {[%emt 0:03:19]} 17. Rad1 {[%emt 0:00:49]} O-O {[%emt 0:02:38]} 18. Qe2 {[%emt 0:15:57]} Qb4 {[%emt 0:03:16]} 19. c4 {[%emt 0:00:24]} Ne7 {[%emt 0:01:32]} 20. a3 {[%emt 0:08:41]} Qa4 {[%emt 0:01:01]} 21. Bf2 {[%emt 0:01:25]} d5 {[%emt 0:03:05]} 22. cxd5 {[%emt 0:01:26]} Nxd5 {[%emt 0:01:22]} 23. Bxd5 {[%emt 0:00:44]} Rxd5 {[%emt 0:00:46]} 24. Rxd5 {[%emt 0:00:35]} exd5 {[%emt 0:00:01]} 25. b4 {[%emt 0:06:31]} Qc6 {[%emt 0:06:28]} 26. e6 {[%emt 0:01:21]} Nd6 {[%emt 0:00:33]} 27. e7 {[%emt 0:00:43]} Rf7 {[%emt 0:03:28]} 28. Qe5 {[%emt 0:01:12]} Qe8 {[%emt 0:04:24]} 29. Re1 {[%emt 0:01:34]} Ne4 {[%emt 0:04:58]} 30. Bh4 {[%emt 0:00:18]} g5 {[%emt 0:02:54]} 31. Qxd5 {[%emt 0:00:31]} Nd6 {[%emt 0:02:05]} 32. Qxg5+ {[%emt 0:00:23]} Rg7 {[%emt 0:00:35]} 33. Qd5+ {[%emt 0:00:08]} Rf7 {[%emt 0:00:44]} 34. Bf6 {[%emt 0:00:50]} h6 {[%emt 0:00:27]} 35. Re3 Qd8 1-0

[Event "1st Gujarat GM Open 2018"]
[Site "Ahmedabad"]
[Date "2018.10.07"]
[Round "3"]
[White "Kunal, M.."]
[Black "Karthik Venkataraman"]
[Result "1/2-1/2"]
[ECO "A06"]
[WhiteElo "2270"]
[BlackElo "2525"]
[Annotator "ChessBase"]
[PlyCount "96"]
[EventDate "2018.10.05"]
[EventType "swiss"]
[EventCountry "IND"]
[SourceTitle "playchess.com"]
[Source "ChessBase"]
[SourceQuality "1"]
[TimeControl "5400+30"]

1. Nf3 {[%emt 0:00:10]} d5 {[%emt 0:00:00]} 2. e3 {[%emt 0:00:09]} Nf6 {[%emt 0:00:11]} 3. c4 {[%emt 0:00:56]} c6 {[%emt 0:01:53]} 4. b3 {[%emt 0:03:13]} g6 {[%emt 0:00:59]} 5. Bb2 {[%emt 0:00:07]} Bg7 {[%emt 0:00:05]} 6. Be2 {[%emt 0:00:45]} O-O {[%emt 0:00:08]} 7. O-O {[%emt 0:00:08]} Nbd7 {[%emt 0:00:47]} 8. cxd5 {[%emt 0:02:59]} cxd5 {[%emt 0:00:16]} 9. d4 {[%emt 0:00:29]} b6 {[%emt 0:04:17]} 10. Nbd2 {[%emt 0:08:40]} Bb7 {[%emt 0:00:21]} 11. Rc1 {[%emt 0:01:26]} Rc8 {[%emt 0:00:05]} 12. Rxc8 {[%emt 0:04:03]} Qxc8 {[%emt 0:00:11]} 13. Qc1 {[%emt 0:00:39]} Qb8 {[%emt 0:00:34]} 14. Qa1 {[%emt 0:00:19]} Rd8 {[%emt 0:05:04]} 15. a4 {[%emt 0:06:49]} Ne4 {[%emt 0:10:47]} 16. Rd1 {[%emt 0:12:20]} Ndf6 {[%emt 0:01:14]} 17. h3 {[%emt 0:04:33]} e6 {[%emt 0:12:56]} 18. Rc1 {[%emt 0:05:23]} Rc8 {[%emt 0:08:16]} 19. Nxe4 {[%emt 0:02:43]} Nxe4 {[%emt 0:00:12]} 20. Rxc8+ {[%emt 0:04:48]} Qxc8 {[%emt 0:00:05]} 21. Qc1 {[%emt 0:00:06]} Qxc1+ {[%emt 0:01:26]} 22. Bxc1 {[%emt 0:00:06]} Bf8 {[%emt 0:00:11]} 23. Kf1 {[%emt 0:02:10]} Bb4 {[%emt 0:00:52]} 24. Bd3 {[%emt 0:00:08]} f6 {[%emt 0:00:14]} 25. Ne1 {[%emt 0:05:55]} Nd2+ {[%emt 0:03:10]} 26. Bxd2 {[%emt 0:00:20]} Bxd2 {[%emt 0:00:06]} 27. Ke2 {[%emt 0:00:08]} Bc3 {[%emt 0:00:06]} 28. f4 {[%emt 0:00:37]} e5 {[%emt 0:01:03]} 29. fxe5 {[%emt 0:00:16]} fxe5 {[%emt 0:00:06]} 30. dxe5 {[%emt 0:00:15]} Bxe1 {[%emt 0:00:08]} 31. Kxe1 {[%emt 0:00:04]} Kf7 {[%emt 0:00:04]} 32. h4 {[%emt 0:05:20]} Ke6 {[%emt 0:01:05]} 33. g3 {[%emt 0:06:11]} Kxe5 {[%emt 0:00:31]} 34. h5 {[%emt 0:00:06]} gxh5 {[%emt 0:04:01]} 35. Bxh7 {[%emt 0:01:49]} Bc8 {[%emt 0:00:05]} 36. Bg6 {[%emt 0:00:18]} Bg4 {[%emt 0:00:14]} 37. b4 {[%emt 0:01:12]} Bf3 {[%emt 0:03:04]} 38. a5 {[%emt 0:04:46]} bxa5 {[%emt 0:05:57]} 39. bxa5 {[%emt 0:01:21]} Kd6 {[%emt 0:01:01]} 40. Kd2 {[%emt 0:00:09]} Kc5 {[%emt 0:00:06]} 41. Bd3 {[%emt 0:00:20]} Kb4 {[%emt 0:01:15]} 42. a6 {[%emt 0:00:06]} Bg4 {[%emt 0:00:59]} 43. Bf1 {[%emt 0:00:12]} Bd7 {[%emt 0:00:58]} 44. Be2 {[%emt 0:00:18]} Be8 {[%emt 0:00:06]} 45. Bf3 {[%emt 0:02:38]} Kc4 {[%emt 0:01:53]} 46. Be2+ {[%emt 0:01:45]} Kb4 {[%emt 0:00:05]} 47. Bf3 {[%emt 0:00:06]} Bf7 {[%emt 0:00:18]} 48. Be2 {[%emt 0:00:51]} Be8 {[%emt 0:02:31]} 1/2-1/2

[Event "1st Gujarat GM Open 2018"]
[Site "Ahmedabad"]
[Date "2018.10.07"]
[Round "3"]
[White "Deshmukh, Anup"]
[Black "Stany, G.A."]
[Result "0-1"]
[ECO "B40"]
[WhiteElo "2267"]
[BlackElo "2502"]
[Annotator "ChessBase"]
[PlyCount "84"]
[EventDate "2018.10.05"]
[EventType "swiss"]
[EventCountry "IND"]
[SourceTitle "playchess.com"]
[Source "ChessBase"]
[SourceQuality "1"]
[TimeControl "5400+30"]

1. e4 {[%emt 0:00:00]} c5 {[%emt 0:00:00]} 2. Nf3 {[%emt 0:00:00]} e6 {[%emt 0:00:18]} 3. c4 {[%emt 0:01:46]} Nc6 {[%emt 0:00:08]} 4. Nc3 {[%emt 0:00:01]} Nf6 {[%emt 0:03:51]} 5. d3 {[%emt 0:02:04]} d6 {[%emt 0:03:44]} 6. h3 {[%emt 0:02:34]} Be7 {[%emt 0:02:52]} 7. g3 {[%emt 0:09:04]} d5 {[%emt 0:02:32]} 8. cxd5 {[%emt 0:02:48]} exd5 {[%emt 0:00:06]} 9. e5 {[%emt 0:01:02]} Nd7 {[%emt 0:00:13]} 10. Nxd5 {[%emt 0:04:29]} Ndxe5 {[%emt 0:00:18]} 11. Nxe7 {[%emt 0:01:21]} Qxe7 {[%emt 0:01:06]} 12. Nxe5 {[%emt 0:00:17]} Nxe5 {[%emt 0:10:13]} 13. Be3 {[%emt 0:00:44]} Bf5 {[%emt 0:03:07]} 14. g4 {[%emt 0:05:15]} Bd7 {[%emt 0:05:10]} 15. Bg2 {[%emt 0:02:44]} Bc6 {[%emt 0:00:43]} 16. Bxc6+ {[%emt 0:00:45]} Nxc6 {[%emt 0:00:05]} 17. Rc1 {[%emt 0:00:42]} b6 {[%emt 0:01:46]} 18. Qa4 {[%emt 0:03:21]} Qd7 {[%emt 0:06:20]} 19. Qe4+ {[%emt 0:02:09]} Kf8 {[%emt 0:00:27]} 20. O-O {[%emt 0:03:47]} Re8 {[%emt 0:03:40]} 21. Qg2 {[%emt 0:03:08]} h5 {[%emt 0:01:54]} 22. g5 {[%emt 0:02:37]} Ne5 {[%emt 0:02:33]} 23. Rc3 {[%emt 0:14:03]} Qf5 {[%emt 0:02:05]} 24. Rd1 {[%emt 0:08:03]} Nf3+ {[%emt 0:00:15]} 25. Kf1 {[%emt 0:01:11]} f6 {[%emt 0:19:45]} 26. g6 {[%emt 0:07:30]} Nh4 {[%emt 0:00:20]} 27. Qg3 {[%emt 0:01:17]} Nxg6 {[%emt 0:00:07]} 28. d4 {[%emt 0:00:44]} h4 {[%emt 0:06:29]} 29. Qh2 {[%emt 0:06:47]} Rd8 {[%emt 0:04:07]} 30. Ra3 {[%emt 0:01:54]} Rd7 {[%emt 0:04:08]} 31. Rxa7 {[%emt 0:03:53]} Kf7 {[%emt 0:05:06]} 32. Rc7 {[%emt 0:02:04]} Ne7 {[%emt 0:03:16]} 33. Rxd7 {[%emt 0:01:46]} Qxd7 {[%emt 0:00:05]} 34. Ke1 {[%emt 0:01:54]} Rd8 {[%emt 0:02:00]} 35. Rd2 {[%emt 0:00:50]} c4 {[%emt 0:00:25]} 36. d5 {[%emt 0:01:33]} Nxd5 {[%emt 0:00:38]} 37. Qg2 {[%emt 0:01:14]} Qf5 {[%emt 0:02:52]} 38. Ke2 {[%emt 0:01:28]} c3 {[%emt 0:00:19]} 39. Rxd5 {[%emt 0:00:50]} Rxd5 {[%emt 0:00:53]} 40. bxc3 {[%emt 0:00:16]} Qd3+ {[%emt 0:00:11]} 41. Kf3 {[%emt 0:00:10]} Rg5 {[%emt 0:00:10]} 42. Qh2 {[%emt 0:00:42]} Qd1+ {[%emt 0:00:05]} 0-1